bitfinex/quotes_SOLUSD_20240906
["timestamp","ask_amount","ask_price","bid_price","bid_amount"]
[1725589442705,45.0,130.9,130.87,7.6411]
[1725589443494,20.0,130.91,130.88,7.6404]
[1725589443694,20.0,130.93,130.86,19.104]
[1725589443891,20.0,130.93,130.89,7.6399]
[1725589444097,20.0,130.93,130.9,7.6393]
[1725589444400,20.0,130.93,130.91,7.6388]
[1725589444607,7.6359,130.96,130.91,7.6388]
[1725589445718,52.6366,130.95,130.91,7.6388]
[1725589445893,20.0,130.94,130.91,7.6388]
[1725589446296,20.0,130.94,130.9,26.7367]
[1725589447020,20.0,130.94,130.9,19.0975]
[1725589447021,27.6372,130.94,130.9,19.0975]
[1725589447320,45.0,130.93,130.9,19.0975]
[1725589448011,20.0,130.94,130.9,19.0975]
[1725589448216,27.6363,130.96,130.91,7.6384]
[1725589448396,52.6365,130.95,130.91,7.6384]
[1725589448599,20.0,130.94,130.91,7.6384]
[1725589449006,20.0,130.94,130.92,7.6382]
[1725589449297,20.0,130.94,130.91,7.6386]
[1725589449519,20.0,130.95,130.91,7.6386]
[1725589450698,20.0,130.95,130.92,7.6381]
[1725589454023,20.0,130.95,130.93,7.6374]
[1725589454335,20.0,130.96,130.93,7.6374]
[1725589454621,27.636,130.96,130.92,26.733]
[1725589456823,20.0,130.96,130.92,19.095]
[1725589457024,20.0,130.99,130.95,7.6363]
[1725589457210,27.6342,130.99,130.95,7.6363]
[1725589458009,7.6348,130.98,130.94,26.7291]
[1725589458216,20.0,130.97,130.94,26.7291]
[1725589458612,20.0,130.97,130.91,19.0963]
[1725589458821,34.4329,131.0,130.91,19.0963]
[1725589458822,7.6366,130.95,130.91,19.0963]
[1725589460215,52.636,130.96,130.91,26.735]
[1725589460411,20.0,130.95,130.91,26.735]
[1725589463745,20.0,130.95,130.91,19.0963]
[1725589463957,20.0,130.95,130.92,7.6381]
[1725589467151,27.6366,130.95,130.91,26.735]
[1725589467336,45.0,130.94,130.91,26.735]
[1725589467846,45.0,130.94,130.91,19.0963]
[1725589468238,52.6372,130.94,130.89,13.24099856]
[1725589468451,52.6372,130.94,130.89,7.6398]
[1725589468843,52.6372,130.94,130.9,7.6393]
[1725589470444,52.6372,130.94,130.89,7.6398]
[1725589471239,7.6377,130.93,130.89,7.6398]
[1725589473848,7.6377,130.93,130.88,19.1008]
[1725589473849,52.6383,130.92,130.88,19.1008]
[1725589474154,7.6383,130.92,130.88,26.7412]
[1725589474356,52.6376,130.94,130.89,7.6399]
[1725589474562,20.0,130.93,130.89,7.6399]
[1725589474933,27.6379,130.93,130.89,7.6399]
[1725589475742,45.0,130.92,130.85,45.27429823]
[1725589475956,45.0,130.92,130.86,5.60665259]
[1725589476149,20.0,130.91,130.87,5.60665259]
[1725589476348,20.0,130.91,130.85,45.27429823]
[1725589476542,20.0,130.91,130.86,5.60713991]
[1725589476745,20.0,130.91,130.85,35.7]
[1725589476946,20.0,130.91,130.86,5.60642519]
[1725589477147,20.0,130.91,130.87,5.60621357]
[1725589477463,27.6388,130.91,130.87,7.641]
[1725589478847,52.6395,130.9,130.86,13.24997889]
[1725589479163,52.6395,130.9,130.86,7.6417]
[1725589479965,52.6395,130.9,130.85,26.747]
[1725589480645,7.641,130.88,130.83,17.21911951]
[1725589480846,7.641,130.88,130.84,13.25388407]
[1725589481058,23.7189,130.89,130.84,7.6428]
[1725589481366,20.0,130.88,130.85,7.6422]
[1725589486081,45.0,130.9,130.86,7.6415]
[1725589486277,20.0,130.89,130.86,7.6415]
[1725589487082,20.0,130.9,130.86,7.6415]
[1725589488083,20.0,130.9,130.87,7.6411]
[1725589488260,27.6394,130.9,130.86,7.6416]
[1725589488756,45.0,130.89,130.86,7.6416]
[1725589491951,27.6394,130.9,130.86,7.6416]
[1725589492457,20.0,130.9,130.87,7.6411]
[1725589492658,20.0,130.9,130.88,7.6402]
[1725589492854,16.0788,130.94,130.9,7.6389]
[1725589494081,20.0,130.93,130.9,7.6389]
[1725589496178,20.0,130.93,130.89,7.6399]
[1725589496481,45.0,130.92,130.89,7.6399]
[1725589499773,27.6378,130.93,130.89,7.6399]
[1725589500394,20.0,130.93,130.89,7.6399]
[1725589500577,20.0,130.93,130.9,7.6391]
[1725589501376,20.0,130.93,130.91,7.6386]
[1725589501899,15.301,130.98,130.92,19.095]
[1725589502109,15.301,130.98,130.91,11.44426545]
[1725589502280,15.301,131.02,130.95,7.6363]
[1725589502705,15.301,131.02,130.95,9.16338179]
[1725589503303,15.301,131.02,130.95,7.6363]
[1725589503506,20.0,131.01,130.95,7.6363]
[1725589504386,7.6341,130.99,130.95,7.6363]
[1725589504713,20.0,130.98,130.95,7.6363]
[1725589505688,20.0,130.98,130.94,26.7292]
[1725589505888,27.6348,130.98,130.94,19.0922]
[1725589507104,27.6348,130.98,130.94,26.7291]
[1725589507709,20.0,130.98,130.95,7.6363]
[1725589507909,45.0,131.0,130.96,7.6354]
[1725589508214,20.0,130.99,130.96,7.6354]
[1725589508418,20.0,131.0,130.96,7.6354]
[1725589508709,20.0,131.0,130.97,7.6352]
[1725589508909,20.0,131.01,130.97,7.6352]
[1725589509299,20.0,131.01,130.96,26.7249]
[1725589509517,27.6331,131.01,130.96,26.7249]
[1725589510389,27.6331,131.01,130.97,7.635]
[1725589511605,20.0,131.01,130.97,7.635]
[1725589511797,20.0,131.01,130.98,7.6346]
[1725589511996,7.6323,131.03,130.98,7.6346]
[1725589512315,65.0,131.02,130.98,7.6346]
[1725589513412,20.0,131.02,130.99,7.634]
[1725589513729,10.0,131.13,130.94,28.559744]
[1725589513730,21.7921,131.09,131.04,7.6311]
[1725589513919,23.006,131.09,131.04,7.6311]
[1725589514105,7.6289,131.08,131.04,7.6311]
[1725589514493,7.6289,131.08,131.03,7.6317]
[1725589515123,20.0,131.07,131.03,7.6317]
[1725589515694,20.0,131.07,131.02,26.7126]
[1725589516094,27.6296,131.07,131.02,26.7126]
[1725589517319,45.0,131.06,130.99,19.0848]
[1725589518118,7.6307,131.05,131.01,7.6329]
[1725589518421,27.63,131.07,131.02,7.6321]
[1725589519319,20.0,131.07,131.04,7.6311]
[1725589519623,7.6295,131.07,131.02,7.6322]
[1725589520119,20.0,131.06,131.02,7.6322]
[1725589520829,38.1216,131.16,131.02,7.6322]
[1725589520830,15.3773,131.12,131.03,28.559744]
[1725589521029,23.0039,131.12,131.07,7.6294]
[1725589521251,23.0039,131.12,131.08,1.06529367]
[1725589522018,23.0039,131.12,131.07,7.6294]
[1725589522230,27.6273,131.11,131.06,7.63]
[1725589522827,7.6278,131.1,131.05,26.7063]
[1725589523034,20.0,131.09,131.05,19.0758]
[1725589523235,7.6295,131.07,131.02,19.0806]
[1725589523549,20.0,131.09,131.02,19.0806]
[1725589523728,7.6289,131.08,131.04,7.6312]
[1725589524131,7.6289,131.08,131.03,7.6317]
[1725589524326,45.0,131.07,131.03,7.6317]
[1725589525554,45.0,131.07,131.02,19.0806]
[1725589525849,20.0,131.06,131.0,7.6331]
[1725589526027,45.0,131.05,131.0,7.6331]
[1725589526353,45.0,131.05,131.01,7.6329]
[1725589527225,45.0,131.05,131.01,7.6328]
[1725589527430,45.0,131.05,131.02,7.6322]
[1725589527643,45.0,131.05,131.01,26.7144]
[1725589527848,7.6318,131.03,130.98,26.7207]
[1725589528044,45.0,131.05,130.98,19.0863]
[1725589528227,65.0,131.04,130.98,19.0863]
[1725589528431,7.6319,131.03,130.98,26.7205]
[1725589528631,7.6319,131.03,130.99,7.6341]
[1725589528942,52.6313,131.04,130.99,7.6341]
[1725589529124,20.0,131.03,130.99,7.6341]
[1725589530145,20.0,131.03,130.96,21.7644]
[1725589530332,7.6324,131.02,130.97,7.6348]
[1725589530933,7.6324,131.02,130.98,7.6346]
[1725589531231,20.0,131.03,130.98,7.6346]
[1725589531232,27.6319,131.03,130.98,7.6346]
[1725589531646,45.0,131.02,130.98,7.6346]
[1725589531962,45.0,131.02,130.97,7.6352]
[1725589532151,45.0,131.02,130.95,26.7265]
[1725589532152,27.6335,131.01,130.95,26.7265]
[1725589532322,45.0,131.0,130.96,7.6357]
[1725589533254,52.6336,131.0,130.95,26.727]
[1725589533450,52.6336,131.0,130.96,7.6357]
[1725589533759,20.0,131.01,130.97,7.6352]
[1725589536252,27.633,131.01,130.97,7.6352]
[1725589537265,20.0,131.01,130.97,7.6352]
[1725589537643,20.0,131.01,130.98,7.6346]
[1725589537965,20.0,131.01,130.99,7.6339]
[1725589538140,20.0,131.03,130.99,7.6339]
[1725589538343,27.6318,131.03,130.99,7.6339]
[1725589539247,27.6318,131.03,130.98,7.6346]
[1725589539847,20.0,131.03,130.97,26.7227]
[1725589540169,45.0,131.02,130.97,26.7227]
[1725589540345,45.0,131.03,130.97,26.7227]
[1725589540664,20.0,131.02,130.97,26.7227]
[1725589540862,45.0,131.01,130.98,7.6345]
[1725589541062,20.0,131.02,130.99,7.6339]
[1725589541252,20.0,131.04,130.99,7.6339]
[1725589541454,45.0,131.03,130.99,7.6339]
[1725589541767,20.0,131.02,130.99,7.6339]
[1725589543845,20.0,131.03,130.99,7.6339]
[1725589545043,20.0,131.03,130.94,66.744744]
[1725589545250,20.0,131.03,131.0,7.6333]
[1725589545659,20.0,131.04,131.0,7.6333]
[1725589546563,16.5371,131.08,131.02,7.6323]
[1725589546758,7.6296,131.07,131.02,7.6323]
[1725589546956,24.1661,131.08,131.03,7.6317]
[1725589547160,7.629,131.08,131.04,7.6312]
[1725589548176,7.629,131.08,131.03,7.6317]
[1725589548474,20.0,131.07,131.03,7.6317]
[1725589549061,20.0,131.07,131.01,19.082]
[1725589549282,7.6295,131.07,131.02,7.6323]
[1725589549659,7.6295,131.07,131.03,7.6317]
[1725589549973,7.6295,131.07,131.02,7.6323]
[1725589550158,7.6302,131.06,131.01,26.7148]
[1725589550663,72.6306,131.05,131.01,19.082]
[1725589551266,72.6306,131.05,131.01,26.7148]
[1725589551978,87.9828,131.05,130.94,60.5131]
[1725589552183,7.634,131.0,130.94,22.3281]
[1725589552371,87.9828,131.05,130.96,19.0895]
[1725589553083,7.633,131.02,130.96,26.7253]
[1725589553656,20.0,131.01,130.96,26.7253]
[1725589555678,20.0,131.01,130.96,19.0895]
[1725589556053,67.9828,131.05,130.95,7.6364]
[1725589556054,7.6337,131.0,130.95,7.6364]
[1725589556277,20.0,130.99,130.95,7.6364]
[1725589556667,27.6342,130.99,130.93,7.6371]
[1725589557985,7.6349,130.98,130.93,7.6371]
[1725589558675,7.6353,130.97,130.92,19.0942]
[1725589558880,20.0,130.96,130.92,19.0942]
[1725589559060,7.6365,130.95,130.9,7.6393]
[1725589559475,20.0,130.94,130.9,7.6393]
[1725589559866,27.637,130.94,130.89,26.7396]
[1725589561264,7.6377,130.93,130.89,19.0997]
[1725589561467,20.0,130.92,130.89,19.0997]
[1725589561665,20.0,130.92,130.87,7.6411]
[1725589561666,27.6383,130.92,130.87,7.6411]
[1725589562572,20.0,130.92,130.86,19.1039]
[1725589562773,27.6377,130.93,130.88,7.6404]
[1725589562997,45.0,130.92,130.88,7.6404]
[1725589563289,27.6377,130.93,130.88,7.6404]
[1725589563990,27.6377,130.93,130.89,7.6399]
[1725589564169,20.0,130.93,130.88,19.1004]
[1725589564375,20.0,130.93,130.9,7.6393]
[1725589565673,7.6358,130.97,130.9,19.0975]
[1725589565875,15.2891,130.98,130.9,19.0975]
[1725589566402,7.6366,130.95,130.9,26.7364]
[1725589566979,7.636,130.96,130.91,7.6386]
[1725589567297,20.0,130.95,130.91,7.6386]
[1725589567470,20.0,130.95,130.92,7.6381]
[1725589568681,15.2891,130.98,130.93,7.6376]
[1725589568682,22.9239,130.98,130.93,7.6376]
[1725589568887,45.0,130.97,130.92,19.0948]
[1725589569284,22.9239,130.98,130.92,19.0948]
[1725589569477,22.9239,130.98,130.93,7.6375]
[1725589570093,20.0,130.97,130.93,7.6375]
[1725589570576,20.0,130.97,130.94,7.6369]
[1725589571888,20.0,130.97,130.93,7.6375]
[1725589572087,20.0,130.97,130.92,19.0948]
[1725589572088,27.6354,130.97,130.92,19.0948]
[1725589572296,52.6359,130.96,130.92,26.7329]
[1725589572896,45.0,130.96,130.92,26.7329]
[1725589573477,52.636,130.96,130.92,19.0948]
[1725589573777,20.0,130.95,130.92,19.0948]
[1725589574782,27.6366,130.95,130.9,7.6392]
[1725589574984,20.0,130.95,130.91,7.6386]
[1725589577107,20.0,130.95,130.89,15.4406]
[1725589577311,20.0,130.95,130.92,7.6382]
[1725589578609,20.0,130.95,130.93,7.6375]
[1725589579014,20.0,130.95,130.92,7.6381]
[1725589580287,20.0,130.95,130.91,26.7349]
[1725589581305,20.0,130.95,130.9,7.6393]
[1725589581306,52.6372,130.94,130.9,7.6393]
[1725589581693,20.0,130.97,130.9,15.4406]
[1725589581890,22.924,130.98,130.93,26.7312]
[1725589583290,20.0,130.97,130.93,26.7312]
[1725589586423,20.0,130.97,130.94,7.6369]
[1725589588020,20.0,130.97,130.93,26.7312]
[1725589589816,20.0,130.97,130.9,19.0978]
[1725589590003,45.0,130.96,130.9,26.737]
[1725589590200,7.6371,130.94,130.9,19.0978]
[1725589590596,27.6377,130.93,130.87,34.2925]
[1725589590814,60.9781,130.92,130.87,19.102]
[1725589591016,27.6393,130.91,130.86,7.6416]
[1725589591319,45.0,130.9,130.86,7.6416]
[1725589592199,27.6393,130.91,130.86,7.6416]
[1725589592606,20.0,130.91,130.87,7.6411]
[1725589593015,20.0,130.91,130.88,7.6405]
[1725589596036,20.0,130.91,130.86,26.7445]
[1725589596805,27.6389,130.91,130.86,26.7445]
[1725589597332,45.0,130.9,130.86,26.7445]
[1725589598321,27.6389,130.91,130.86,26.7445]
[1725589606046,20.0,130.91,130.87,7.6411]
[1725589606248,20.0,130.91,130.86,19.1033]
[1725589606543,20.0,130.91,130.88,7.6404]
[1725589606933,20.0,130.91,130.87,7.641]
[1725589607721,27.639,130.91,130.87,7.641]
[1725589609054,27.639,130.91,130.84,5.65351143]
[1725589609055,20.0,130.91,130.84,5.65351143]
[1725589609219,20.0,130.91,130.83,24.76489103]
[1725589609220,6.151,130.89,130.83,24.76489103]
[1725589609420,7.6406,130.88,130.83,26.7513]
[1725589609618,45.0,130.87,130.83,26.7513]
[1725589610145,52.6412,130.87,130.83,26.7513]
[1725589611140,52.6412,130.87,130.83,19.1079]
[1725589611362,68.9454,130.87,130.83,19.1079]
[1725589611559,27.6419,130.86,130.81,7.6445]
[1725589611755,52.6423,130.85,130.81,7.6445]
[1725589612141,20.0,130.84,130.81,7.6445]
[1725589615661,27.643,130.84,130.8,26.7576]
[1725589617050,20.0,130.84,130.81,7.6446]
[1725589618169,7.6435,130.83,130.78,7.6462]
[1725589618378,65.0,130.82,130.78,7.6462]
[1725589621172,20.0,130.82,130.77,19.9699828]
[1725589621364,20.0,130.83,130.79,7.6456]
[1725589622463,20.0,130.83,130.81,19.1111]
[1725589622777,16.3042,130.87,130.84,7.6427]
[1725589623069,16.3042,130.87,130.83,7.6433]
[1725589624075,20.0,130.86,130.84,7.6429]
[1725589624371,16.3042,130.87,130.84,7.6429]
[1725589627383,29.7627,130.9,130.85,7.6421]
[1725589627689,20.0,130.89,130.85,7.6421]
[1725589627895,20.0,130.89,130.86,7.6417]
[1725589629370,15.7498,130.93,130.87,19.102]
[1725589629616,7.6383,130.92,130.87,26.743]
[1725589630499,7.6389,130.91,130.87,26.743]
[1725589630671,27.6389,130.91,130.87,26.743]
[1725589638604,15.7498,130.93,130.84,5.65956103]
[1725589638774,7.6366,130.95,130.91,7.6386]
[1725589639074,22.1232,130.97,130.91,7.6386]
[1725589639075,29.7587,130.97,130.92,1.52760134]
[1725589639275,29.7571,131.0,130.95,7.6364]
[1725589639698,7.6342,130.99,130.95,7.6364]
[1725589639990,7.6342,130.99,130.94,26.7292]
[1725589640400,7.6342,130.99,130.95,7.6364]
[1725589640569,22.1232,131.0,130.95,9.16309426]
[1725589640570,20.0,130.98,130.95,9.16309426]
[1725589640978,6.3734,131.03,130.96,19.0887]
[1725589641207,15.7498,131.04,130.96,19.0887]
[1725589641506,15.7498,131.04,130.97,1.03746213]
[1725589641802,23.3815,131.04,130.98,7.6347]
[1725589642016,7.6324,131.02,130.97,7.6352]
[1725589642180,7.6318,131.03,130.98,7.6347]
[1725589642703,65.0,131.02,130.98,7.6347]
[1725589642877,45.0,131.02,130.98,7.6347]
[1725589643494,45.0,131.02,130.97,7.6352]
[1725589644185,20.0,131.01,130.97,7.6352]
[1725589647008,20.0,131.01,130.96,19.0887]
[1725589647208,45.0,131.0,130.96,26.7243]
[1725589648419,45.0,131.0,130.96,19.0887]
[1725589648710,20.0,130.99,130.96,19.0887]
[1725589649811,20.0,130.99,130.93,19.0938]
[1725589650114,20.0,130.99,130.95,7.6364]
[1725589651616,1.32985274,130.98,130.95,6.30654726]
[1725589652131,1.32985274,130.98,130.96,7.6353]
[1725589652514,1.32985274,130.98,130.95,26.7262]
[1725589652894,1.32985274,130.98,130.95,19.0898]
[1725589653107,46.32985274,130.98,130.95,19.0898]
[1725589653613,53.96455274,130.98,130.94,7.637]
[1725589653798,70.61625274,130.98,130.94,7.637]
[1725589654522,70.61625274,130.98,130.94,6.30684928]
[1725589655015,70.61625274,130.98,130.93,7.6375]
[1725589655317,70.61625274,130.98,130.94,7.637]
[1725589657320,7.6354,130.97,130.93,7.6375]
[1725589657528,7.6354,130.97,130.93,6.30733477]
[1725589658629,62.98155274,130.98,130.94,7.637]
[1725589658803,20.0,130.97,130.94,7.637]
[1725589659527,20.0,130.97,130.95,7.6363]
[1725589659729,20.0,130.97,130.96,7.6359]
[1725589659947,20.0,130.97,130.95,7.6364]
[1725589660247,1.32985274,130.98,130.95,7.6364]
[1725589660408,1.32985274,130.98,130.95,6.3065181]
[1725589661520,1.32985274,130.98,130.94,26.729]
[1725589662921,8.96475274,130.98,130.94,19.092]
[1725589663123,72.6354,130.97,130.93,7.6375]
[1725589663527,72.6354,130.97,130.92,7.6381]
[1725589667027,65.0,130.97,130.93,7.6376]
[1725589667225,65.0,130.97,130.93,19.0932]
[1725589667226,20.0,130.97,130.93,19.0932]
[1725589667532,1.32985274,130.98,130.91,38.1939]
[1725589668211,1.32985274,130.98,130.96,7.6357]
[1725589670718,1.32985274,130.98,130.96,6.30594884]
[1725589670935,20.0,131.0,130.96,6.30594884]
[1725589671923,1.32981871,130.99,130.96,6.30594884]
[1725589674429,1.32981871,130.99,130.95,19.0907]
[1725589676341,1.32981871,130.99,130.96,7.6355]
[1725589677526,1.32981871,130.99,130.96,6.30558568]
[1725589679540,1.32981871,130.99,130.97,7.6351]
[1725589681254,1.32981871,130.99,130.98,7.6347]
[1725589681641,24.2057,131.05,131.01,7.6327]
[1725589682755,20.0,131.04,131.01,7.6327]
[1725589683647,20.0,131.04,131.0,19.0833]
[1725589683858,7.6295,131.07,131.0,19.0833]
[1725589684163,7.6295,131.07,131.02,7.6322]
[1725589684659,1.32909463,131.06,131.02,7.6322]
[1725589685461,21.32909463,131.06,131.02,7.6322]
[1725589686968,21.32909463,131.06,131.03,7.6318]
[1725589687474,1.32909463,131.06,131.03,6.30284123]
[1725589688283,1.32909463,131.06,131.02,19.0804]
[1725589688949,1.32909463,131.06,131.05,7.6306]
[1725589696482,1.32909463,131.06,131.04,26.7086]
[1725589697260,1.32909463,131.06,131.05,7.6306]
[1725589700486,1.32909463,131.06,131.05,9.15393632]
[1725589701478,27.6276,131.11,131.06,7.6298]
[1725589701685,45.0,131.1,131.06,7.6298]
[1725589703885,7.6299,131.07,131.01,19.0818]
[1725589705263,7.6299,131.07,131.03,7.6318]
[1725589707482,7.6307,131.05,131.01,26.7146]
[1725589707683,7.6307,131.05,131.01,25.38523906]
[1725589708062,7.6302,131.06,131.01,25.38523906]
[1725589708275,72.6307,131.05,131.01,25.38523906]
[1725589709098,72.6307,131.05,131.01,17.75243906]
[1725589709667,65.0,131.05,130.99,7.634]
[1725589709868,20.0,131.05,130.96,27.05232461]
[1725589710088,27.6302,131.06,131.01,7.6327]
[1725589711384,1.32928271,131.05,131.01,7.6327]
[1725589714615,8.95998271,131.05,131.01,7.6327]
[1725589714778,27.6315,131.04,131.0,26.7164]
[1725589714986,1.32928271,131.05,131.0,26.91331735]
[1725589714987,8.95998271,131.05,131.0,26.91331735]
[1725589715305,20.0,131.04,131.0,26.91331735]
[1725589717814,20.0,131.04,131.01,7.6328]
[1725589718814,20.0,131.04,131.0,25.38728148]
[1725589719511,20.0,131.04,131.01,7.6328]
[1725589719817,20.0,131.04,131.01,9.15914143]
[1725589721913,20.0,131.04,131.01,7.6328]
[1725589727695,1.32928271,131.05,131.02,19.0804]
[1725589729514,1.32928271,131.05,131.03,7.6314]
[1725589731427,1.32928271,131.05,131.02,26.7126]
[1725589732021,1.32928271,131.05,131.03,7.6317]
[1725589735833,1.32928271,131.05,131.02,26.7127]
[1725589736215,1.32928271,131.05,131.02,19.0804]
[1725589736413,7.633,131.01,130.92,15.2153]
[1725589736722,7.6325,131.02,130.97,7.6353]
[1725589736932,20.0,131.01,130.97,7.6353]
[1725589737127,1.3297721,131.0,130.97,7.6353]
[1725589739602,1.3297721,131.0,130.98,7.6345]
[1725589740710,16.1439,130.99,130.95,6.30651487]
[1725589742031,1.32992319,130.98,130.95,6.30651487]
[1725589742816,1.32992319,130.98,130.94,7.6369]
[1725589743227,46.32992319,130.98,130.94,7.6369]
[1725589744127,46.32992319,130.98,130.93,19.0934]
[1725589744128,27.6354,130.97,130.93,19.0934]
[1725589744812,27.6354,130.97,130.93,26.731]
[1725589749940,20.0,130.97,130.93,19.0934]
[1725589750241,1.32992319,130.98,130.95,19.0907]
[1725589750242,21.32992319,130.98,130.95,19.0907]
[1725589751446,21.32992319,130.98,130.96,7.6359]
[1725589752243,1.32992319,130.98,130.96,7.6359]
[1725589752542,1.32992319,130.98,130.97,7.6353]
[1725589771038,1.32992319,130.98,130.97,19.06292461]
[1725589771257,1.32992319,130.98,130.97,64.06292461]
[1725589771776,1.32992319,130.98,130.97,19.06292461]
[1725589772069,2.319e-05,130.98,130.97,19.06292461]
[1725589772241,6.5956,131.06,131.03,7.6314]
[1725589773561,14.2257,131.06,131.02,26.7121]
[1725589773763,45.0,131.05,130.99,19.0847]
[1725589774063,20.0,131.04,131.0,7.633]
[1725589775463,1.32942493,131.03,131.0,7.633]
[1725589775640,46.32942493,131.03,131.0,7.633]
[1725589779966,1.32942493,131.03,131.0,7.633]
[1725589782067,1.32942493,131.03,131.01,7.6329]
[1725589782758,1.32942493,131.03,131.0,7.6334]
[1725589785965,16.4625,131.02,130.96,20.61487747]
[1725589786172,7.6337,131.0,130.95,7.6361]
[1725589786470,71.4661,131.01,130.94,7.637]
[1725589786471,52.6343,130.99,130.94,7.637]
[1725589786769,45.0,130.98,130.94,7.637]
[1725589788072,7.6343,130.99,130.93,19.0931]
[1725589788073,7.6336,131.0,130.95,7.6362]
[1725589788243,65.0,130.99,130.95,7.6362]
[1725589790841,20.0,130.99,130.97,7.6351]
[1725589791044,6.4661,131.01,130.97,19.0873]
[1725589791268,16.4625,131.02,130.97,19.0873]
[1725589791461,20.0,131.01,130.97,19.0873]
[1725589791668,20.0,131.01,130.98,7.6346]
[1725589794980,16.4625,131.02,131.0,7.6334]
[1725589795168,1.32942493,131.03,130.97,11.42762461]
[1725589795472,1.32942493,131.03,131.02,7.6324]
[1725589795854,6.3777,131.08,131.04,7.631]
[1725589796570,14.0066,131.08,131.03,7.6317]
[1725589796754,20.0,131.07,131.03,7.6317]
[1725589796959,14.0066,131.08,131.03,7.6317]
[1725589798377,20.0,131.07,131.03,7.6317]
[1725589798590,21.32911703,131.07,131.03,7.6317]
[1725589800201,28.95861703,131.07,131.02,7.6322]
[1725589800502,45.0,131.06,131.02,6.30293904]
[1725589800892,52.6302,131.06,131.01,26.7143]
[1725589801096,45.0,131.06,131.02,7.632]
[1725589801399,21.32911703,131.07,131.01,19.0814]
[1725589801605,1.32911703,131.07,131.04,7.631]
[1725589802283,1.32911703,131.07,131.05,7.6306]
[1725589804608,1.32911703,131.07,131.06,7.63]
[1725589805208,1.32911703,131.07,131.05,26.7064]
[1725589806197,1.32911703,131.07,131.06,7.63]
[1725589817917,1.32911703,131.07,131.05,19.0759]
[1725589818119,1.32911703,131.07,131.05,26.7064]
[1725589819726,1.32911703,131.07,131.02,19.0801]
[1725589819920,1.32911703,131.07,130.97,14.59563191]
[1725589819921,62.68341703,131.07,130.97,14.59563191]
[1725589820127,7.6312,131.05,131.0,7.633]
[1725589820431,7.6312,131.05,131.01,7.6328]
[1725589820606,27.6301,131.06,131.01,7.6328]
[1725589820810,1.32932829,131.04,131.01,7.6328]
[1725589821422,1.32932829,131.04,131.0,7.6334]
[1725589825017,8.96062829,131.04,131.0,7.6334]
[1725589825226,45.0,131.03,130.99,26.7185]
[1725589825422,45.0,131.03,130.99,25.38905641]
[1725589825934,45.0,131.03,131.0,7.6335]
[1725589826236,46.32932829,131.04,131.01,7.6327]
[1725589826432,1.32932829,131.04,131.01,7.6327]
[1725589826645,1.32932829,131.04,131.02,7.6321]
[1725589828441,1.32932829,131.04,131.03,7.6318]
[1725589830532,1.32932829,131.04,131.02,7.6322]
[1725589831416,1.32932829,131.04,131.01,26.7145]
[1725589837343,1.32932829,131.04,131.03,7.6318]
[1725589839025,1.32932829,131.04,131.02,7.6318]
[1725589839539,1.32932829,131.04,131.01,26.7145]
[1725589841730,8.96072829,131.04,131.0,7.6334]
[1725589841933,8.96072829,131.04,131.0,6.30407198]
[1725589842446,1.32932829,131.04,131.0,6.30407198]
[1725589843552,1.32932829,131.04,130.99,7.634]